Cogmind - Beta 16.1 @@@ ROGUE MODE // 2026.03.30 @ 21:07:17 Player: Minty Result: Destroyed by Y-45 Defender with Beam Rifle Performance ------------- Evolutions (2) 1000 Regions Visited (4) 800 Robots Destroyed (47) 235 Value Destroyed (1420) 1420 Prototype IDs (5) 100 Alien Tech Used (0) 0 Bonus (16) 16 TOTAL SCORE: 3571 Bonus ------- High Alert Combat Kills 16 Cogmind --------- Core Integrity 0/550 Matter 126/300 Energy 100/100 System Corruption 7% Temperature Cool (9) Movement Core (100) Ox1 Location -8/Materials Parts ------- > --- POWER (1) -------- (None) > --- PROPULSION (2) --- (None) > --- UTILITY (4) ------ Machine Analyzer Improved Signal Interpreter Hacking Suite Trap Extractor (0/4) > --- WEAPON (4) ------- Autogun > --- INVENTORY (5) ---- (None) Peak State ------------ > --- POWER ------------ Improved Ion Engine > --- PROPULSION ------- Light Treads Light Treads > --- UTILITY ---------- Medium Storage Unit Structural Scanner Salvage Targeting Computer Improved Light Armor Plating > --- WEAPON ----------- Heavy Assault Rifle Heavy Assault Rifle Heavy Assault Rifle Heavy Assault Rifle > --- INVENTORY -------- Improved Ion Engine Light Treads Light Treads Cooling System Machine Analyzer Improved Signal Interpreter Hacking Suite Trap Extractor Heavy Assault Rifle Datajack [Rating: 21] Favorites ----------- Power Ion Engine Engine Ion Engine Propulsion Light Treads Treads Light Treads Leg Aluminum Leg Wheel Wheel Hover Unit Hover Unit Utility Medium Storage Unit Device Structural Scanner Storage Medium Storage Unit Processor Salvage Targeting Computer Hackware Hacking Suite Protection Improved Light Armor Plating Weapon Heavy Assault Rifle Energy Gun Medium Laser Energy Cannon EM Pulse Cannon Ballistic Gun Heavy Assault Rifle Impact Weapon Great Maul Special Melee Weapon Datajack Build | -11 -10 -10 -9 -8 ------- Run | Yrd Mat Min Mat Mat Slots Evolved 4 | . . . 2 2 Power . | . . . . . Propulsion . | . . . . . Utility 2 | . . . . 2 Weapon 2 | . . . 2 . Parts Attached 46 | . 6 9 13 18 Power 4 | . . 1 2 1 Engine 4 | . . 1 2 1 Core . | . . . . . Reactor . | . . . . . Propulsion 17 | . 4 4 4 5 Treads 10 | . . 4 4 2 Leg 3 | . 2 . . 1 Wheel 2 | . . . . 2 Hover 2 | . 2 . . . Flight . | . . . . . Utility 10 | . 1 1 1 7 Device 4 | . 1 . . 3 Storage 1 | . . 1 . . Processor 3 | . . . 1 2 Hackware 1 | . . . . 1 Protection 1 | . . . . 1 Artifact . | . . . . . Weapon 15 | . 1 3 6 5 Energy Gun 2 | . . 1 . 1 Energy Cannon 1 | . . . . 1 Ballistic Gun 9 | . 1 2 4 2 Ballistic Cannon . | . . . . . Launcher . | . . . . . Special Weapon . | . . . . . Impact Weapon 1 | . . . . 1 Slashing Weapon . | . . . . . Piercing Weapon . | . . . . . Special Melee Weapon 2 | . . . 2 . Unidentified Prototypes . | . . . . . Corrupted Parts 2 | . . 1 . 1 System Corruption 5 | . . 1 . 4 Parts Lost 27 | . . 4 2 21 Power 3 | . . 1 . 2 Propulsion 9 | . . 2 . 7 Utility 4 | . . . . 4 Weapon 11 | . . 1 2 8 Highest Loss Streak 21 | . . 4 2 21 To Critical Strikes 1 | . . . . 1 Average Backups 8 | . 7 6 9 7 Power . | . 1 . 1 . Propulsion 2 | . 4 2 1 1 Utility 3 | . 1 3 5 4 Weapon . | . . . . . Tool/Special . | . . . . . Unused Backups 10 | . 4 2 4 . Power 2 | . 1 1 . . Propulsion 2 | . . . 2 . Utility 3 | . 1 . 2 . Weapon 3 | . 2 1 . . Tool/Special . | . . . . . Average Slot Usage (%) 93 | . 98 97 97 68 Engine 11 | . 14 14 11 6 Treads 16 | . . 23 22 11 Leg 5 | . 27 2 . . Device 5 | . 12 14 . 6 Storage 11 | . 14 14 11 6 Processor 6 | . . . 10 9 Energy Gun 4 | . 16 2 1 2 Ballistic Gun 28 | . 11 24 38 18 Peak Build Rating 21 | . 8 10 16 21 Average Rating 12 | . 7 9 14 14 On Entrance 9 | 6 6 8 10 16 Avg Prop Armor Cover (%) 27 | . . . . 27 Naked Turns . | . . . . . Heaviest Build 33 | 13 15 22 29 33 Greatest Support 40 | 20 20 40 40 40 Greatest Overweight (x) 3 | . 2 . . 3 Average Overweight (x) . | . . . . . Largest Inventory Capacity 10 | . 8 10 10 10 Average Capacity 9 | . 8 8 10 8 Most Carried 10 | . 8 8 10 10 Average Carried 8 | . 7 6 9 6 Final Capacity 10 | 8 8 10 10 5 Final Carried 10 | 6 8 7 10 . Class Distribution -------------------- 50% | Scavenger-Gunner 31% | Mutant 8% | Scavenger-Skirmisher 6% | Scavenger-Mutant Dominant Class ---------------- Mutant | -10/Materials Mutant | -10/Mines Scavenger-Gunner | -9/Materials Scavenger-Mutant | -8/Materials Resources | -11 -10 -10 -9 -8 ----------- Run | Yrd Mat Min Mat Mat Matter Collected 1213 | 187 182 101 662 81 Remotely . | . . . . . Salvage Created 2074 | . 431 161 1090 392 Parts 122 | . 20 10 69 23 Haulers Intercepted 1 | . 1 . . . Recyclers Shooed 3 | . 2 . 1 . Parts Field Recycled . | . . . . . Retrieved Matter . | . . . . . Parts Self-Destructed . | . . . . . Prevented . | . . . . . Parts Restored . | . . . . . Kills | -11 -10 -10 -9 -8 ------- Run | Yrd Mat Min Mat Mat Combat Hostiles Destroyed 34 | . 5 2 20 7 Guns 32 | . 5 2 20 5 Cannons 2 | . . . . 2 Classes Destroyed 11 | . 6 1 3 1 Worker 4 | . 2 . . 2 Tunneler 1 | . . . 1 . Hauler 1 | . 1 . . . Recycler 2 | . 1 . 1 . Mechanic 2 | . 1 . 1 . Operator 1 | . 1 . . . Watcher 2 | . . . 2 . Swarmer 2 | . . . 2 . Grunt 21 | . 5 . 12 4 Sentry 9 | . . 2 6 1 Hunter 2 | . . . . 2 Best Kill Streak 7 | . 7 2 5 7 Combat Bots Only 5 | . 2 2 4 5 Max Kills in Single Turn 2 | . 2 1 1 2 Gunslinging . | . . . . . Exploded . | . . . . . Melee . | . . . . . Uniques/NPCs Destroyed . | . . . . . Combat | -11 -10 -10 -9 -8 -------- Run | Yrd Mat Min Mat Mat Hostile Shots Fired 360 | . 37 30 100 193 Missed 103 | . 9 7 33 54 Hits 257 | . 28 23 67 139 Melee 4 | . . . . 4 Projectile 253 | . 28 23 67 135 Critical Strikes 8 | . . 1 1 6 Damage Taken 3470 | . 305 336 805 2024 Core 823 | . 55 75 140 553 Absorbed by Shields . | . . . . . Regen/Repaired (Parts) 44 | . . . 44 . Core Remaining (%) 71 | 100 . 48 65 . Volleys Fired 120 | . 34 8 52 26 Largest 4 | . 2 2 4 4 Hottest 142 | . 70 70 92 142 Shots Fired 330 | . 68 15 196 51 Gun 326 | . 68 15 196 47 Cannon 4 | . . . . 4 Launcher . | . . . . . Special . | . . . . . Kinetic 268 | . 34 10 190 34 Thermal 49 | . 34 2 . 13 Explosive . | . . . . . Electromagnetic 13 | . . 3 6 4 Robot Hit Streak 27 | . 10 6 11 27 Robot Miss Streak 4 | . 4 1 3 2 Penetration Max . | . . . . . Secondary Targets 9 | . 2 . 4 3 Max Gunslinging Chain 1 | . 1 . 1 1 Shots Hit Robots 229 | . 41 10 131 47 Core Hits 87 | . 20 5 42 20 Critical Kills . | . . . . . Critical Parts Destroyed . | . . . . . Critical Strikes 3 | . 3 . . . Burn 3 | . 3 . . . Melee Attacks 3 | . . . 1 2 Impact 2 | . . . . 2 Slashing . | . . . . . Piercing . | . . . . . Sneak Attacks 1 | . . . 1 . Combat Hostiles 1 | . . . 1 . Follow-up Attacks . | . . . . . Damage Inflicted 3579 | . 529 130 1947 973 Guns 3224 | . 522 127 1928 647 Cannons 104 | . . . . 104 Explosions 218 | . . . . 218 Melee . | . . . . . Ramming 33 | . 7 3 19 4 Kinetic 2707 | . 253 105 1891 458 Thermal 676 | . 269 . . 407 Explosive . | . . . . . Electromagnetic 163 | . . 22 37 104 Impact . | . . . . . Slashing . | . . . . . Piercing . | . . . . . Highest Corruption 7 | . . 1 1 7 Average Corruption 1 | . . 1 1 5 Corruption Purged . | . . . . . Corruption Blocked . | . . . . . Effects 3 | . . 1 1 1 Message Errors 1 | . . . . 1 Matter Fused 1 | . . 1 . . Data Loss (minor) 1 | . . . 1 . Overload Shots . | . . . . . Overflow Damage . | . . . . . Projectiles . | . . . . . Explosions . | . . . . . Melee . | . . . . . Knockbacks . | . . . . . Impact . | . . . . . Kinetic . | . . . . . Secondary . | . . . . . Self-Inflicted Damage . | . . . . . Shots . | . . . . . Rammed 9 | . . 2 6 1 Targets Rammed 11 | . 2 2 6 1 Kicked 2 | . 2 . . . Crushed . | . . . . . Highest Temperature 184 | . 163 53 128 184 Average Temperature 43 | . 62 18 32 51 Received Heat Transfer 1305 | . 168 126 318 693 Siege Activations . | . . . . . Martial Activations . | . . . . . Shielding Activations . | . . . . . Robots Disrupted . | . . . . . Combat Hostiles . | . . . . . Robots Corrupted . | . . . . . Combat Hostiles . | . . . . . Parts Fried . | . . . . . Impact Corruptions . | . . . . . Robots Melted . | . . . . . Combat Hostiles . | . . . . . Parts Melted 1 | . 1 . . . Heat Transferred 1767 | . 1036 . . 731 Parts Sabotaged . | . . . . . Parts Stolen . | . . . . . Parts Stripped . | . . . . . Power Chain Reactions 1 | . . . . 1 Alert | -11 -10 -10 -9 -8 ------- Run | Yrd Mat Min Mat Mat Maximum Alert Level 2 | . . . 2 1 Low Security (%) 75 | . 100 100 55 98 Level 1 17 | . . . 31 1 Level 2 7 | . . . 13 . Level 3 . | . . . . . Level 4 . | . . . . . Level 5 . | . . . . . High Security . | . . . . . Max Security . | . . . . . Peak Influence 452 | . 82 40 452 211 Initial 187 | . . 31 . 187 Average 134 | . 23 11 195 153 Influence Increases 1217 | . 167 45 766 239 Destroy 0b10 Robot/C 680 | . 100 40 400 140 Destroy 0b10 Robot/NC 70 | . 30 5 25 10 Destroy Leader 216 | . 22 . 154 40 Successful Hack 65 | . 15 . 50 . Select Force Hacks 60 | . . . 60 . Disable Machine 30 | . . . 30 . Destroy Structure 6 | . . . 2 4 Lose Combat Pursuer 90 | . . . 45 45 Influence Decreases 1101 | . 85 127 322 567 Entered New Map 308 | . . 51 . 257 Time Decay 533 | . 85 46 302 100 Lost Part 260 | . . 30 20 210 Squads Dispatched 12 | . 2 . 8 2 Investigation 9 | . 1 . 8 . Extermination . | . . . . . Reinforcement 3 | . 1 . . 2 Assault . | . . . . . Garrison . | . . . . . Intercept . | . . . . . Searches Triggered . | . . . . . Construction Impeded . | . . . . . Haulers Reinforced . | . . . . . Active Scanning Responses . | . . . . . Cargo Convoy Interrupts . | . . . . . Stealth | -11 -10 -10 -9 -8 --------- Run | Yrd Mat Min Mat Mat Distress Signals 4 | . 1 . 2 1 Communications Jammed . | . . . . . Distress Signals . | . . . . . Times Spotted 63 | . 11 2 29 21 Peak Tracking Total 12 | . 2 2 4 12 Tactical Retreats 3 | . . . 2 1 Traps | -11 -10 -10 -9 -8 ------- Run | Yrd Mat Min Mat Mat Traps Triggered 1 | . . . 1 . Indirectly . | . . . . . Trap Hack Attempts 9 | . . . 9 . Triggered . | . . . . . Disarmed 1 | . . . 1 . Reprogrammed 1 | . . . 1 . Reused . | . . . . . Traps Extracted . | . . . . . Installed . | . . . . . Triggered . | . . . . . Machines | -11 -10 -10 -9 -8 ---------- Run | Yrd Mat Min Mat Mat Machines Disabled 2 | . . . 2 . Max in Single Turn 1 | . . . 1 . Machines Repaired . | . . . . . Machines Dismantled . | . . . . . Machines Sabotaged . | . . . . . Overloaded Fab Kills . | . . . . . Hacking | -11 -10 -10 -9 -8 --------- Run | Yrd Mat Min Mat Mat Machines Accessed 10 | . 1 . 9 . Terminals 6 | . 1 . 5 . Fabricators . | . . . . . Repair Stations 2 | . . . 2 . Recycling Units 2 | . . . 2 . Scanalyzers . | . . . . . Garrison Access . | . . . . . Total Hacks 30 | . 5 . 25 . Successful 15 | . 4 . 11 . Failed 15 | . 1 . 14 . Catastrophic 1 | . . . 1 . Database Lockouts . | . . . . . Manual 15 | . 3 . 12 . Terminals 21 | . 5 . 16 . Fabricators . | . . . . . Repair Stations 5 | . . . 5 . Recycling Units 4 | . . . 4 . Scanalyzers . | . . . . . Garrison Access . | . . . . . Terminal Hacks 7 | . 2 . 5 . Part Schematic 1 | . . . 1 . Robot Analysis 1 | . . . 1 . Prototype ID Bank 2 | . 1 . 1 . Branch Access Points 1 | . . . 1 . Locate Traps 1 | . . . 1 . Zone Layout 1 | . 1 . . . Fabricator Hacks . | . . . . . Repair Station Hacks 1 | . . . 1 . Scan Component 1 | . . . 1 . Recycling Unit Hacks 2 | . . . 2 . Report Inventory 2 | . . . 2 . Scanalyzer . | . . . . . Garrison Access Hacks . | . . . . . Unauthorized Hacks 5 | . 2 . 3 . Terminals 2 | . 2 . . . Assimilate 1 | . 1 . . . Botnet 1 | . 1 . . . Fabricators . | . . . . . Repair Stations 1 | . . . 1 . Patch 1 | . . . 1 . Recycling Units 2 | . . . 2 . Tunnel 2 | . . . 2 . Scanalyzers . | . . . . . Garrison Access . | . . . . . Data Cores Recovered . | . . . . . Used . | . . . . . Hacking Detections 7 | . 1 . 6 . Full Trace Events 5 | . 1 . 4 . Feedback Events 1 | . . . 1 . Corruption 1 | . . . 1 . Feedback Blocked . | . . . . . Robot Schematics Acquired . | . . . . . Robots Built . | . . . . . Authchips . | . . . . . Time . | . . . . . Total Robot Build Rating . | . . . . . Part Schematics Acquired 1 | . . . 1 . Parts Built . | . . . . . Authchips . | . . . . . Time . | . . . . . Total Part Build Rating . | . . . . . Part Studies Acquired . | . . . . . Parts Repaired . | . . . . . Time . | . . . . . Parts Recycled . | . . . . . Recycled Matter . | . . . . . Retrieved Matter . | . . . . . Retrieved Components . | . . . . . Parts Scanalyzed . | . . . . . Part Schematics Acquired . | . . . . . Parts Damaged . | . . . . . Bothacking | -11 -10 -10 -9 -8 ------------ Run | Yrd Mat Min Mat Mat Used RIF Installer . | . . . . . Robots Hacked 1 | . . . 1 . Non-combat . | . . . . . Combat 1 | . . . 1 . Robot Hacks Applied 1 | . . . 1 . parse_system 1 | . . . 1 . Relay Couplers Released . | . . . . . Fabnet Peak Effective % . | . . . . . Robots Rewired . | . . . . . Allies Hacked . | . . . . . Hacks Repelled . | . . . . . Allies | -11 -10 -10 -9 -8 -------- Run | Yrd Mat Min Mat Mat Total Allies . | . . . . . Largest Group . | . . . . . Highest-Rated Group . | . . . . . Highest-Rated Ally . | . . . . . Total Orders . | . . . . . Ally Attacks . | . . . . . Total Damage . | . . . . . Kills . | . . . . . Allies Corrupted . | . . . . . Allies Melted . | . . . . . Intel | -11 -10 -10 -9 -8 ------- Run | Yrd Mat Min Mat Mat Active Infowar (turns) 554 | . 240 167 51 96 Structural 522 | . 240 167 51 64 Machine Analysis 32 | . . . . 32 Robot Analysis Total 1 | . . . 1 . Derelict Logs Recovered . | . . . . . Drone Launches . | . . . . . Drone Recoveries . | . . . . . Exploration | -11 -10 -10 -9 -8 ------------- Run | Yrd Mat Min Mat Mat Turns Passed 1428 | . 258 185 774 211 Spaces Moved 623 | 1 116 92 323 91 Core 43 | . . . . 43 Treads 451 | . . 85 323 43 Legs 123 | 1 115 7 . . Wheels 5 | . . . . 5 Hover 1 | . 1 . . . Flight . | . . . . . Fastest Speed 50 | 120 120 120 160 50 Average Speed 144 | 120 121 156 160 109 Slowest Speed 200 | 120 190 160 160 200 Overloaded Moves . | . . . . . Propulsion Burnouts . | . . . . . Robots Hopped . | . . . . . Potential Cave-ins . | . . . . . Cave-ins Triggered . | . . . . . Exploration Rate (%) 18 | 2 19 26 32 13 Regions Visited 4 Branch Regions 1 Pre-discovered Areas 2 | . . . 2 . Known Exits Taken . | . . . . . Unknown Exits Taken 4 | 1 1 1 1 . Scrap Searched . | . . . . . Spaces Dug . | . . . . . Terrain Destroyed 3 | . . . . 3 Melee . | . . . . . Projectile . | . . . . . AOE 3 | . . . . 3 Terrain Rammed . | . . . . . Walls Destroyed . | . . . . . Machines Disabled . | . . . . . Actions | -11 -10 -10 -9 -8 --------- Run | Yrd Mat Min Mat Mat Total 882 | . 163 116 453 150 Wait 28 | . . . 19 9 Move 619 | . 115 91 322 91 Hop . | . . . . . Pick Up 15 | . 3 1 10 1 Fast Attach 14 | . 1 1 4 8 Attach 16 | . . 5 1 10 Detach 2 | . . 1 1 . Swap 25 | . 6 4 14 1 Drop 20 | . 2 3 14 1 Fire 120 | . 34 8 52 26 Melee 3 | . . . 1 2 Ram . | . . . . . Kick 2 | . 2 . . . Crush 9 | . . 2 6 1 Escape Stasis . | . . . . . Rewire . | . . . . . Trap 9 | . . . 9 . Miscellaneous . | . . . . . Route ------- -11/Scrapyard -10/Materials -10/Mines -9/Materials (discovered 3 exits: [*Mat] / Min x2) -8/Materials (discovered 1 exit: [*Sto]) History --------- Turn | Location | Event 1 | -11/Scrapyard | Discovered new exit (range 0) 1 | -11/Scrapyard | Entered Materials 56 | -10/Materials | Discovered new exit (range 18) 259 | -10/Materials | Entered Mines 284 | -10/Mines | Core integrity fell below 50% 311 | -10/Mines | Lost 4 parts (1p2n1w) 332 | -10/Mines | Build established: Mutant 414 | -10/Mines | Discovered new exit (range 12) 444 | -10/Mines | Entered Materials 444 | -9/Materials | Evolved 2 slots: Weapon x2 890 | -9/Materials | Build established: Scavenger-Gunner 971 | -9/Materials | Identified exit to Mines 1210 | -9/Materials | Discovered new exit (range 4) 1218 | -9/Materials | Entered another Materials area 1218 | -8/Materials | Evolved 2 slots: Utility x2 1369 | -8/Materials | Core integrity fell below 50% 1381 | -8/Materials | Core integrity fell below 20% 1402 | -8/Materials | Discovered new exit (range 14) 1429 | -8/Materials | Destroyed by Y-45 Defender with Beam Rifle Last Messages --------------- 01373_ Med. Storage Unit destroyed. 01374_ K-01 Serf destroyed. 01375_ Acquired Great Maul. 01379_ Wheel destroyed. 01382_ Acquired Corrupted Carbon-fiber Leg. 01382_ Integrated Corrupted Carbon-fiber Leg (+4). 01382_ Salvage Targeting Computer destroyed. 01384_ R-06 Scavenger collects Lgt. Nuclear Core. 01386_ R-06 Scavenger collects Aluminum Leg. 01387_ Dropped Great Maul. 01388_ LDNS2T O5YCF%NQ 4G,DB SXZR, 01388_ R-06 Scavenger destroyed. 01389_ Acquired 21 matter. 01392_ W-25 Informer sends out distress signal. 01402_ EXIT=FOUND 01402_ Carbon-fiber Leg destroyed. 01402_ >> Machine Analyzer network decryption results: 01402_ Terminal x1 01406_ Acquired Autogun. 01423_ Datajack destroyed. Map ----- +----------------------------------------------------+ | | | | | | | | | | | | | | | | | | | ?????????????????????????????????????????????????? | | ?????????????????????????????????????????????????? | | ?????????????????????????????????????????????????? | | ?????????????????????????????????????????????????? | | ?????????????????????????????????????????????????? | | ?????????????????????????????????????????????????? | | ?????????????????????????????????????????????????? | | ?????????????????????????????????????????????????? | | ?????????????????????????????????????????????????? | | ?????????????????????????????????????????????????? | | ?????????????????????????????????????????????????? | | ?????????????????????????????????????????????????? | | ?????????????????????????????????????????????????? | | ?????????????????????????????????????????????????? | | ?????????????????????????????????????????????????? | | ???????????????????########??????????????????????? | | ?????????????"T"???# Y @#??????????????????????? | | ???????????????????# """ #??????????????????????? | | ???????????????????# """ #??????????????????????? | | ???????????????????#gg""" #??????????????????????? | | ???????????????????# gg #??????????????????????? | | ??????????????####?# Y #??????????????????????? | | ??????????##### ##/#####??????????????????????? | | ?????? #????????????????????????? | | ?????? < #????????????????????????? | | ?????? ##### ### #????############### ????? | | ??????????????######## #????# ????? | | ??????????????# + ###### ????? | | ???????????#""" """ # ????????? | | ????????????"R """ # ##??????????????? | | ????????????""" """?######### # ??????????????? | | ??????????????# ?????????# # ??????????????? | | ??????????????? ! ??????????# # ??????????????? | | ??????????????################ # ??????????????? | | ???????####################### # ?????????????? | | ???????############ =%!## #########???????? | | ######### # *[*=# ####### ????? | | ######### """"" # ![!# % ???? | | ## # """"" # /%%/% " ????? | | ## # """"" # *%%#= ???? | | ## """ # # *=%#! ###+### ????? | +----------------------------------------------------+ Best States ------------- Heat Dissipation 53 Energy Generation 12 Energy Capacity 265 Matter Stores 300 Matter Capacity 300 Sight Range 16 Terrain Scan Density 10 Armor Coverage 150 Evasion (%) 55 Recoil Reduction 2 Salvage Targeting 1 Offensive Hacking 10 Trap Extractor Capacity 4 Item Schematics ----------------- Salvage Targeting Computer | -9/Materials | Hacked Robot Schematics ------------------ None Fabricated ------------ Nothing Repaired ---------- Nothing Studied --------- None Alien Tech Used ----------------- None Achievements -------------- None Challenges ------------ None Game ------ Seed SensorArcBiocell Manual? 0 Play Time 00:11:51 Cumulative 1291.7 hours Start 2026.03.30 @ 20:56:18 End 2026.03.30 @ 21:07:17 Sessions 1 Manual Loads 0 Difficulty Rogue Special Mode None Game No. 1585 Rogue 1301 Adventurer 124 Explorer 160 Win Type - Total 63 Types 49/0/8/4/1/0/0/1/0/0 Lore% 93 Gallery% 83 Achievement% 70 Wizard Run 0 Options --------- Layout 0 ASCII 0 Keyboard 1 Movement Numpad Keybinds 0 Fullscreen 2 Font 18/X11 Map View 76x50 Zoom Use 1% Tactical HUD 1 Map Filters NONE Filters NONE Steam 1 RUN: c63f5e6a-c9c0-4738-8dcb-849074951974